[Event "2nd Bundesliga Nord 2024-25"]
[Site "Germany"]
[Date "2025.02.22"]
[Round "8.9"]
[White "Lutz, Christopher"]
[Black "Volokitin, Andrei"]
[Result "1/2-1/2"]
[Annotator "TA"]
[ECO "B90"]
[WhiteElo "2524"]
[BlackElo "2643"]
[PlyCount "101"]
[EventDate "2024.11.29"]
[EventType "team-tourn"]
[EventCountry "GER"]
[SourceTitle "playchess.com"]
[Source "ChessBase"]
[SourceQuality "1"]
[WhiteTeam "SG Porz"]
[BlackTeam "Wolfhagen"]
[TimeControl "40/5400+30:1800+30"]

{[%evp 11,101,18,26,23,18,8,50,13,27,18,9,12,16,10,29,16,5,-1,0,-8,-8,0,-5,-9,33,19,32,18,35,26,28,0,35,0,0,0,0,0,0,0,0,0,27,0,0,0,7,0,0,0,0,0,0,-7,0,0,0,0,0,0,0,0,0,0,0,0,0,0,0,0,0,0,0,0,0,0,0,0,0,0,0,0,0,0,0,0,0,0,0,0,0,0]} 1. e4 {[%emt 0:00:04]} c5 {[%emt 0:00:10]} 2. Nf3 {[%emt 0:00:18]} d6 {[%emt 0:00:08]} 3. d4 {[%emt 0:00:24]} cxd4 {[%emt 0:00:09]} 4. Nxd4 {[%emt 0:00:06]} Nf6 {[%emt 0:00:05]} 5. Nc3 {[%emt 0:00:07]} a6 {[%emt 0:00:08]} 6. Bd3 {[%emt 0:04:23]} g6 {[%emt 0:01:35]} 7. f3 {[%emt 0:02:19] B90: Sicilian Najdorf: Unusual White 6th moves, 6 Be3 Ng4 and 6 Be3 e5.} Qb6 {[%emt 0:00:58]} 8. Nb3 {[%emt 0:00:44]} Nbd7 {[%emt 0:01:37]} 9. Qe2 {[%emt 0:00:18] White is slightly better.} Bg7 {[%emt 0:00:32]} 10. g4 $146 {[%emt 0:00:49]} ({Predecessor:} 10. Be3 Qc7 11. g4 b5 12. g5 Nh5 13. Nd5 Qd8 14. O-O-O Bb7 15. Qe1 e6 16. Nf4 Nxf4 17. Bxf4 {1-0 Caruana,F (2798)-Volokitin,A (2660) Olympiad-45 Budapest 2024 (4.1)}) 10... Nc5 {[%emt 0:24:37]} 11. Be3 {[%emt 0:41:54]} Be6 {[%emt 0:02:09]} 12. O-O {[%emt 0:05:41] Black should prevent Nxc5.} Qc7 {[%emt 0:29:40]} 13. Nxc5 {[%emt 0:06:20]} dxc5 {[%emt 0:02:33]} 14. Bc4 {[%emt 0:00:06]} Bxc4 {[%emt 0:05:04]} 15. Qxc4 {[%emt 0:00:08]} Nd7 {[%emt 0:04:53]} 16. a4 {[%emt 0:02:14]} e6 {[%emt 0:04:43][%cal Og6g5]} 17. f4 {[%emt 0:02:33]} h5 {[%emt 0:07:31]} 18. g5 $1 {[%emt 0:01:18]} O-O {[%emt 0:00:58]} 19. e5 {[%emt 0:06:23]} Rfd8 {[%emt 0:00:25]} 20. Rfd1 {[%emt 0:08:31]} Bf8 {[%emt 0:03:37]} 21. Ne4 {[%emt 0:01:39]} Qc6 {[%emt 0:02:26]} 22. Kf2 {[%emt 0:05:37]} b5 {[%emt 0:01:59]} 23. axb5 {[%emt 0:02:08]} axb5 {[%emt 0:00:03]} 24. Rxa8 {[%emt 0:00:55]} Qxa8 {[%emt 0:04:34]} 25. Qd3 {[%emt 0:02:02][%cal Oe3c5]} c4 {[%emt 0:00:36]} 26. Qd4 {[%emt 0:01:37]} Rb8 {[%emt 0:01:41]} 27. b3 {[%emt 0:03:47]} cxb3 {[%emt 0:00:23] The position is equal.} 28. cxb3 {[%emt 0:00:06]} Qb7 {[%emt 0:00:39]} 29. Ra1 {[%emt 0:00:34] [#]} Ra8 {[%emt 0:00:19]} 30. Nd6 {[%emt 0:01:47]} Bxd6 {[%emt 0:00:27]} 31. Rxa8+ {[%emt 0:00:02]} Qxa8 {[%emt 0:00:01]} 32. Qxd6 $11 {[%emt 0:00:09][%mdl 4096] Endgame KQB-KQN} Nf8 {[%emt 0:01:16]} 33. Bc5 {[%emt 0:00:28] [#] Black must now prevent Qxf8+.} Nh7 {[%emt 0:00:29]} 34. Ke3 {[%emt 0:00:15]} Qa2 {[%emt 0:00:32][%csl LRb3,LRh2]} 35. Qb8+ {[%emt 0:00:51]} Kg7 {[%emt 0:00:01]} 36. Qxb5 {[%emt 0:00:08]} Qxh2 {[%emt 0:00:03]} 37. Be7 {[%emt 0:01:00]} Qg3+ {[%emt 0:01:21]} 38. Ke2 {[%emt 0:00:20]} Qxf4 {[%emt 0:00:30]} 39. Bf6+ {[%emt 0:00:36]} Kg8 {[%emt 0:00:33][%cal Oh7f6] Strongly threatening ...Nxf6!.} 40. Qb8+ {[%emt 0:00:45]} Nf8 {[%emt 0:00:01]} 41. Be7 {[%emt 0:03:01]} Qe4+ {[%emt 0:01:56]} 42. Kd2 {[%emt 0:01:41]} Qd4+ {[%emt 0:00:03]} 43. Kc2 {[%emt 0:02:47]} Qe4+ {[%emt 0:02:35]} 44. Kb2 {[%emt 0:07:46]} Qd4+ {[%emt 0:00:04]} 45. Kc2 {[%emt 0:04:27]} (45. Ka3 $5 Qa1+ $8 46. Kb4 Qd4+ 47. Ka3 $11) 45... Qe4+ {[%emt 0:00:06]} 46. Kb2 {[%emt 0:00:04]} Qd4+ {[%emt 0:00:03]} 47. Ka3 {[%emt 0:04:41]} Qa1+ {[%emt 0:00:06]} 48. Kb4 {[%emt 0:00:06]} Qd4+ $1 {[%emt 0:00:03]} 49. Ka3 {[%emt 0:00:09]} (49. Ka5 $5 Qd5+ $8 50. Ka6 Qd3+ 51. Ka5 Qd5+ $11) 49... Qa1+ {[%emt 0:00:06]} 50. Kb4 {[%emt 0:00:04]} Qd4+ $1 {[%emt 0:00:03]} 51. Ka3 {[%emt 0:01:30] An even fight not without its subleties.   Weighted Error Value: White=0.04 (flawless) /Black=0.04 (flawless)   Inaccurate:     	White=3     	Black=4      OK:         	White=22    	Black=17     Best:        	White=1     	Black=3      Strong:       	White=1     	Black=2} 1/2-1/2

[Event "2nd Bundesliga Nord 2024-25"]
[Site "Germany"]
[Date "2025.02.22"]
[Round "8.10"]
[White "Kuzubov, Yuriy"]
[Black "Xu, Xianliang"]
[Result "1-0"]
[Annotator "TA"]
[ECO "D02"]
[WhiteElo "2597"]
[BlackElo "2470"]
[PlyCount "81"]
[EventDate "2024.11.29"]
[EventType "team-tourn"]
[EventCountry "GER"]
[SourceTitle "playchess.com"]
[Source "ChessBase"]
[SourceQuality "1"]
[WhiteTeam "Wolfhagen"]
[BlackTeam "SG Porz"]
[TimeControl "40/5400+30:1800+30"]

{[%evp 9,81,11,15,14,12,0,-2,-2,0,-8,0,-12,-8,-12,-12,-14,-4,-12,0,0,0,0,0,0,0,-23,-22,-20,-6,-10,0,0,18,21,66,59,9,29,29,59,115,114,241,172,202,180,177,181,177,175,164,89,149,147,138,132,114,125,117,125,125,131,115,0,0,0,382,362,1145,799,771,743,745,712]} 1. d4 {[%emt 0:00:03]} d5 {[%emt 0:00:06]} 2. Nf3 {[%emt 0:00:06]} Nc6 {[%emt 0:00:34]} 3. Bf4 {[%emt 0:00:44]} Bg4 {[%emt 0:00:13]} 4. Nbd2 {[%emt 0:02:29]} e6 {[%emt 0:00:31]} 5. h3 {[%emt 0:01:35]} Bf5 {[%emt 0:03:01]} 6. e3 {[%emt 0:07:54] D02: 1 d4 d5 2 Nf3 sidelines, including 2...Nf6 3 g3 and 2...Nf6 3 Bf4.} Bd6 {[%emt 0:03:18]} 7. Bb5 {[%emt 0:07:15]} Nge7 {[%emt 0:04:58]} 8. c3 {[%emt 0:05:16] The position is equal.} a6 $146 {[%emt 0:03:18]} ({Predecessor:} 8... O-O 9. O-O Bxf4 10. exf4 Qd6 11. g3 Bxh3 12. Re1 Bg4 13. Kg2 Ng6 14. Bd3 Nce7 {½-½ Plueg,A (2375)-Maahs,E (2180) Wichern op 4th 1997 (7)}) 9. Ba4 {[%emt 0:00:23]} O-O {[%emt 0:10:10]} 10. Qe2 {[%emt 0:03:20]} h6 {[%emt 0:13:39]} 11. O-O {[%emt 0:02:29]} Bxf4 {[%emt 0:06:53]} 12. exf4 {[%emt 0:02:22]} Qd6 {[%emt 0:00:20]} 13. Qe3 {[%emt 0:01:04]} b5 {[%emt 0:07:05]} 14. Bd1 {[%emt 0:02:22]} Na5 {[%emt 0:03:24]} 15. b3 {[%emt 0:23:21] Prevents Nc4} Nb7 {[%emt 0:03:16]} 16. Re1 {[%emt 0:03:24]} Bh7 {[%emt 0:03:00]} 17. Nf1 {[%emt 0:02:17]} c5 {[%emt 0:02:06]} 18. g4 {[%emt 0:04:51][%cal Of4f5]} cxd4 {[%emt 0:06:48]} 19. cxd4 {[%emt 0:00:35][%cal Of4f5]} Nc6 {[%emt 0:02:21]} 20. Ng3 {[%emt 0:02:48]} Rac8 {[%emt 0:06:40]} 21. Rc1 {[%emt 0:06:20]} Nb4 {[%emt 0:02:16]} 22. Rxc8 {[%emt 0:01:31]} Rxc8 {[%emt 0:00:04]} 23. f5 {[%emt 0:02:43]} exf5 {[%emt 0:06:06]} 24. gxf5 {[%emt 0:00:04]} f6 {[%emt 0:03:08][%csl Od5,Og7] Black has weak pawns Inhibits Ne5.} (24... Nxa2 $14 25. Ne5 Nb4) 25. Nh4 $16 {[%emt 0:02:28]} Nc6 {[%emt 0:03:30]} (25... Qd7 $16 {was worth a try.}) 26. Ng6 {[%emt 0:02:19]} Bxg6 {[%emt 0:01:29]} 27. fxg6 {[%emt 0:00:05]} f5 {[%emt 0:00:44] Inhibits Bg4.} 28. Nxf5 {[%emt 0:09:11] White attacks} Qxg6+ {[%emt 0:00:07]} 29. Bg4 {[%emt 0:00:11][%cal Bd1g4,Bg4e6,Be6f5][%mdl 32] and Nh4 should not be overlooked} Rf8 {[%emt 0:03:11] [#]} 30. Nh4 {[%emt 0:01:04]} ({Better is} 30. Qf3 $1 $18 {[%cal Rf3d5]}) 30... Qf6 {[%emt 0:01:55]} (30... Qg5 $142 31. Qxg5 hxg5) 31. Qe6+ {[%emt 0:00:33]} Rf7 {[%emt 0:00:53]} 32. Qe8+ {[%emt 0:04:17]} (32. Qxd5 $2 Qxf2+ 33. Kh1 Qxe1+ $19) 32... Rf8 {[%emt 0:00:03] [#]} 33. Be6+ $1 {[%emt 0:00:17]} Kh7 {[%emt 0:00:10]} 34. Bf5+ {[%emt 0:00:10]} (34. Qxc6 $2 Qxf2+ 35. Kh1 Qxe1+ $19) 34... Kg8 {[%emt 0:00:11] Black is weak on the light squares} 35. Qe6+ {[%emt 0:00:21]} Rf7 {[%emt 0:01:51]} 36. Qe8+ {[%emt 0:01:29]} (36. Qc8+ $16 Rf8 37. Qe6+ (37. Qxb7 Qxh4 38. Qxc6 Rxf5 $14) 37... Rf7 38. Qc8+) 36... Rf8 $11 {[%emt 0:01:11]} 37. Ng6 {[%emt 0:00:38][%cal Bh4g6,Bg6f8,Bf8e6,Be6d4][%mdl 32] The board is on fire.} Qxf5 {[%emt 0:00:00][%mdl 8192]} (37... Qg5+ $11 {and Black is okay.} 38. Kf1 Qxf5 (38... Rxe8 39. Rxe8+ Kh7 40. Rh8#) 39. Nxf8 (39. Qxc6 $2 Qxf2#) 39... Qxh3+ 40. Kg1 Qg4+ 41. Kh2 Qf3) 38. Nxf8 $18 {[%emt 0:00:18]} (38. Qxc6 {is a self mate.} Qxf2+ 39. Kh1 Qxe1+ 40. Kh2 Rf2+ 41. Kg3 Qg1+ 42. Kh4 Qg5#) 38... Nxd4 $2 {[%emt 0:00:27]} (38... Nbd8 39. Nd7+ Kh7) 39. Ne6+ {[%emt 0:00:10] White is clearly winning.} Kh7 {[%emt 0:00:12]} 40. Nxd4 {[%emt 0:00:07]} Qxh3 {[%emt 0:00:45]} 41. Qc6 {[%emt 0:32:06] Weighted Error Value: White=0.35/Black=0.39  Loses game:     	---       	Black=1      Mistake:       	White=2     	Black=4      Inaccurate:     	White=1     	Black=2      OK:         	White=6     	Black=13     Best:        	White=7     	Black=4      Strong:       	White=1     	---} 1-0

[Event "2nd Bundesliga Nord 2024-25"]
[Site "Germany"]
[Date "2025.02.22"]
[Round "8.11"]
[White "Rotstein, Arkadij"]
[Black "Onyshchuk, Volodymyr"]
[Result "0-1"]
[Annotator "RC"]
[ECO "B07"]
[WhiteElo "2432"]
[BlackElo "2610"]
[PlyCount "62"]
[EventDate "2024.11.29"]
[EventType "team-tourn"]
[EventCountry "GER"]
[SourceTitle "playchess.com"]
[Source "ChessBase"]
[SourceQuality "1"]
[WhiteTeam "SG Porz"]
[BlackTeam "Wolfhagen"]
[TimeControl "40/5400+30:1800+30"]

1. Nf3 {[%emt 0:00:07]} g6 {[%emt 0:00:58]} 2. e4 {[%emt 0:02:17]} Bg7 {[%emt 0:00:16]} 3. d4 {[%emt 0:00:20]} d6 {[%emt 0:00:17]} 4. c3 {[%emt 0:00:53]} Nf6 {[%emt 0:00:23]} 5. Bd3 {[%emt 0:00:51]} O-O {[%emt 0:00:11]} 6. O-O {[%emt 0:00:16]} Nc6 {[%emt 0:00:15]} 7. h3 {[%emt 0:05:12]} e5 {[%emt 0:00:30]} 8. dxe5 {[%emt 0:01:55]} Nxe5 {[%emt 0:00:42]} 9. Nxe5 {[%emt 0:13:25]} dxe5 {[%emt 0:00:08]} 10. Re1 {[%emt 0:00:19]} Be6 {[%emt 0:04:45]} 11. Na3 {[%emt 0:02:10]} a6 {[%emt 0:11:08]} 12. Bg5 {[%emt 0:03:06]} h6 {[%emt 0:01:19]} 13. Bh4 {[%emt 0:00:19]} b5 {[%emt 0:10:03]} 14. Nc2 {[%emt 0:08:52]} Qc8 {[%emt 0:12:33]} 15. a4 {[%emt 0:04:25]} Qb7 {[%emt 0:04:06]} 16. axb5 {[%emt 0:12:16]} axb5 {[%emt 0:00:12]} 17. Qe2 {[%emt 0:00:12]} Nh5 {[%emt 0:04:42]} 18. Qe3 {[%emt 0:03:02]} Nf4 {[%emt 0:17:05]} 19. Bf1 {[%emt 0:00:16]} Rxa1 {[%emt 0:00:12]} 20. Rxa1 {[%emt 0:00:10]} c5 {[%emt 0:00:13]} 21. Ra5 {[%emt 0:10:54]} Bc4 {[%emt 0:01:12]} 22. Bg3 {[%emt 0:14:56]} Bxf1 {[%emt 0:09:58]} 23. Kxf1 {[%emt 0:00:02]} Rd8 {[%emt 0:00:08]} 24. Bxf4 {[%emt 0:03:33]} exf4 {[%emt 0:02:14]} 25. Qe2 {[%emt 0:01:42]} f3 {[%emt 0:04:55]} 26. Qxf3 {[%emt 0:00:44]} Rd2 {[%emt 0:00:49]} 27. Na3 {[%emt 0:06:19]} Qd7 {[%emt 0:03:18]} 28. Kg1 {[%emt 0:01:59]} Rxb2 {[%emt 0:03:28]} 29. Qf4 {[%emt 0:02:34]} Qe8 {[%emt 0:03:30]} 30. g3 {[%emt 0:00:31]} Bxc3 {[%emt 0:00:19]} 31. Ra7 {[%emt 0:01:39]} Bd4 {[%emt 0:00:57]} 0-1

[Event "2nd Bundesliga Nord 2024-25"]
[Site "Germany"]
[Date "2025.02.22"]
[Round "8.12"]
[White "Motylev, Alexander"]
[Black "Suvorov, Alexander"]
[Result "1/2-1/2"]
[Annotator "TA"]
[ECO "B52"]
[WhiteElo "2603"]
[BlackElo "2356"]
[PlyCount "169"]
[EventDate "2024.11.29"]
[EventType "team-tourn"]
[EventCountry "GER"]
[SourceTitle "playchess.com"]
[Source "ChessBase"]
[SourceQuality "1"]
[WhiteTeam "Wolfhagen"]
[BlackTeam "SG Porz"]
[TimeControl "40/5400+30:1800+30"]

{[%evp 22,169,22,18,30,30,32,28,37,11,24,26,22,6,27,22,22,23,52,24,24,25,31,25,59,24,54,26,54,57,62,59,61,54,54,54,55,54,59,56,55,41,98,95,108,95,112,0,99,106,106,92,140,134,134,77,79,36,79,44,477,475,472,467,397,313,324,305,308,76,76,8,25,0,76,76,76,50,65,49,62,63,80,93,96,65,86,76,76,79,102,86,85,84,77,46,46,8,8,13,85,75,131,131,146,118,140,122,312,343,426,310,323,303,323,306,258,0,177,132,122,0,0,0,0,0,162,162,139,0,0,0,166,-410,-412,-445,-279,-116,-190,-837,-839,-641,-460,-347,0,0,0,-424,0,0]} 1. e4 {[%emt 0:00:09]} c5 {[%emt 0:00:33]} 2. Nf3 {[%emt 0:00:14]} d6 {[%emt 0:00:20]} 3. Bb5+ {[%emt 0:00:07]} Bd7 {[%emt 0:01:35]} 4. Bxd7+ {[%emt 0:00:11]} Qxd7 {[%emt 0:00:34]} 5. O-O {[%emt 0:00:16]} Nf6 {[%emt 0:01:36][%cal Bg8f6,Bf6e4,Be4g5,Bg5f7][%mdl 32]} 6. Qe2 {[%emt 0:01:44]} Nc6 {[%emt 0:01:35]} 7. c3 {[%emt 0:01:33]} e6 {[%emt 0:02:30]} 8. d4 {[%emt 0:01:17]} cxd4 {[%emt 0:02:24]} 9. cxd4 {[%emt 0:00:26]} d5 {[%emt 0:03:08]} 10. e5 {[%emt 0:00:07]} Ne4 {[%emt 0:00:57]} 11. Be3 {[%emt 0:00:14] 11.Nbd2 is the hot move.} Be7 {[%emt 0:05:53]} 12. Ne1 {[%emt 0:02:13]} f5 {[%emt 0:11:26][%cal Of5f4] B52: Sicilian: Moscow Variation with 3...Bd7.} 13. Nd3 {[%emt 0:07:19]} O-O {[%emt 0:08:48]} 14. f3 {[%emt 0:02:40]} Ng5 {[%emt 0:04:08][%cal Of5f4] White has an edge.} 15. Nd2 {[%emt 0:00:43]} b6 {[%emt 0:13:31]} 16. Rac1 {[%emt 0:04:40]} Rac8 {[%emt 0:09:09]} 17. Nb1 $146 {[%emt 0:18:32]} (17. Rc3 Na5 18. Rfc1 Rxc3 19. Rxc3 Rc8 20. Rxc8+ Qxc8 21. Qd1 Nf7 22. Qc1 Qxc1+ 23. Nxc1 {0-1 Rabiega,R (2521)-Ftacnik,L (2598) Dresden ZMD op 2003 (7)}) 17... Nf7 {[%emt 0:03:27]} 18. Nc3 {[%emt 0:01:25]} g5 {[%emt 0:14:38]} 19. g3 {[%emt 0:01:16]} h6 {[%emt 0:04:02]} 20. Bf2 {[%emt 0:15:15]} Nh8 {[%emt 0:04:13]} 21. h4 {[%emt 0:04:22]} gxh4 {[%emt 0:04:00]} 22. gxh4 {[%emt 0:01:25]} Kh7 {[%emt 0:00:01]} 23. Kh2 {[%emt 0:01:11]} Rg8 {[%emt 0:00:15]} 24. Rg1 {[%emt 0:01:04] White attacks} Rxg1 {[%emt 0:01:51]} 25. Rxg1 {[%emt 0:00:06]} Rg8 {[%emt 0:00:26]} 26. Rxg8 {[%emt 0:07:02]} Kxg8 {[%emt 0:00:01]} 27. Nf4 {[%emt 0:02:06] Wards off Ng6} Kh7 {[%emt 0:00:11]} 28. Qf1 {[%emt 0:03:29]} Ng6 {[%emt 0:01:51]} 29. Nxg6 {[%emt 0:00:50]} Kxg6 {[%emt 0:00:01]} 30. Ne2 {[%emt 0:01:31]} Kh7 {[%emt 0:00:50]} 31. Nf4 {[%emt 0:00:16]} Nd8 {[%emt 0:00:50]} (31... Bd8 $14) 32. Qg1 $16 {[%emt 0:03:49]} Qe8 {[%emt 0:00:11]} 33. Qc1 {[%emt 0:00:18] White is more active.} Qd7 {[%emt 0:00:25] Against Qc8} 34. Qg1 {[%emt 0:05:54]} Qe8 {[%emt 0:00:02] [#] Dodges Qg6+} 35. a4 $1 {[%emt 0:00:16]} a6 {[%emt 0:01:17]} (35... Bf8 36. Kh3) 36. Kh3 $40 {[%emt 0:04:06][%mdl 128] Black is in trouble.} a5 {[%emt 0:01:10]} (36... b5 $142) 37. Qc1 {[%emt 0:07:40]} Qd7 {[%emt 0:00:05] Dodges Qc7} 38. b3 {[%emt 0:00:53]} (38. Qd1 $142 $1) 38... Nf7 {[%emt 0:00:51]} 39. Qf1 {[%emt 0:01:15]} Nh8 {[%emt 0:00:33]} 40. Qb5 {[%emt 0:00:52]} Qxb5 {[%emt 0:00:39][%mdl 8192]} (40... Qc8 $1 $14) 41. axb5 $14 {[%emt 0:30:10][%mdl 4096] Endgame KBN-KBN} Ng6 {[%emt 0:03:15]} 42. Nxe6 {[%emt 0:00:00]} h5 {[%emt 0:01:16]} 43. Be3 {[%emt 0:00:00]} Bxh4 {[%emt 0:05:24]} 44. Nc7 {[%emt 0:00:00]} f4 {[%emt 0:00:53]} 45. Bg1 {[%emt 0:00:00]} (45. Bc1 $1 $18) 45... Bd8 {[%emt 0:00:15]} 46. Ne6 {[%emt 0:00:31]} (46. Nxd5 $16 {and e6 should not be overlooked} Kh6 47. Nf6) 46... Bh4 $1 $11 {[%emt 0:02:53]} 47. Nc7 {[%emt 0:00:14]} (47. Bh2 $11 Bf2 48. Bxf4) 47... Bd8 $1 $16 {[%emt 0:00:28]} 48. Nxd5 {[%emt 0:00:06]} Kh6 {[%emt 0:01:06]} 49. Bh2 {[%emt 0:03:30]} Kg5 {[%emt 0:00:10]} 50. Kg2 $1 {[%emt 0:00:12]} Kf5 {[%emt 0:00:52]} 51. Kf1 {[%emt 0:00:32]} Kg5 {[%emt 0:00:40]} 52. Ke2 {[%emt 0:00:30]} Kf5 {[%emt 0:00:14]} 53. Kf2 {[%emt 0:01:08]} Bh4+ {[%emt 0:00:34]} 54. Kf1 $1 {[%emt 0:00:08]} Bd8 {[%emt 0:00:33]} 55. Nc3 {[%emt 0:00:20]} Be7 {[%emt 0:04:12]} 56. Ke2 {[%emt 0:00:30]} Bd8 {[%emt 0:10:14]} 57. Bg1 {[%emt 0:00:43]} Be7 {[%emt 0:00:20]} 58. Nd5 {[%emt 0:00:42]} Bd8 {[%emt 0:00:03]} 59. Bf2 {[%emt 0:00:41]} Ke6 {[%emt 0:00:33]} 60. Nc3 {[%emt 0:00:11]} Kf5 {[%emt 0:00:03]} (60... h4 $11 {remains equal.}) 61. Ne4 {[%emt 0:00:35]} Be7 {[%emt 0:01:12]} (61... Ke6 $142) 62. Be1 $1 {[%emt 0:00:26]} h4 {[%emt 0:00:47]} 63. Nf2 {[%emt 0:00:16]} Nf8 {[%emt 0:03:26]} 64. Nh3 {[%emt 0:00:24]} Ne6 $2 {[%emt 0:00:55]} (64... Ng6 $16 65. Kd3 Bf8) 65. Kd3 $1 $18 {[%emt 0:00:46]} Bd8 {[%emt 0:00:46]} 66. Bf2 {[%emt 0:00:29]} Nc7 {[%emt 0:00:57]} 67. Kc4 {[%emt 0:00:07]} Be7 {[%emt 0:00:13]} 68. Be1 {[%emt 0:00:49]} Bd8 {[%emt 0:00:20]} 69. Bf2 {[%emt 0:01:02]} Be7 {[%emt 0:00:09]} 70. Bg1 {[%emt 0:01:01]} Bb4 {[%emt 0:00:50] [#]} 71. Bh2 {[%emt 0:00:26]} ({White should try} 71. d5 $1 $16 Kxe5 72. Bd4+ (72. Bxb6 Nxd5 73. Bd8 Ne3+ 74. Kd3 Ng2 $16) 72... Kd6 73. Nxf4) 71... Bd2 $11 {[%emt 0:00:06]} 72. Nf2 {[%emt 0:00:25]} (72. Bg1 $5 Be3 $8 73. Bh2 $11) 72... Be1 {[%emt 0:01:33]} 73. Nh3 {[%emt 0:00:16]} (73. Nd3 $5 Bg3 $8 74. Bg1 $11) 73... Bg3 $2 {[%emt 0:01:13]} (73... Bd2 $1 $11 {and Black has nothing to worry.}) 74. Bg1 $18 {[%emt 0:00:02]} Ke6 {[%emt 0:00:20]} 75. Bf2 {[%emt 0:00:45]} Kf5 {[%emt 0:00:11]} 76. Bg1 {[%emt 0:01:07]} Ke6 $1 {[%emt 0:00:01] [#]} 77. Nf2 $4 {[%emt 0:00:13][%mdl 8192]} (77. d5+ $1 $18 {was the only winning move.} Nxd5 (77... Kxe5 $2 78. Bxb6 Kd6 79. Bd4 $18) 78. Bd4) 77... Bxf2 $19 {[%emt 0:01:06]} 78. Bxf2 {[%emt 0:00:01] KB-KN. White is a pawn up.} h3 {[%emt 0:00:02] ( -> ...h2)} 79. Bg1 {[%emt 0:00:04]} Nd5 {[%emt 0:00:24][%mdl 1024] Black has strong compensation.} 80. Bh2 $2 {[%emt 0:00:20]} (80. Kd3) 80... Ne3+ {[%emt 0:00:16]} 81. Kd3 {[%emt 0:00:01]} Kf5 {[%emt 0:01:06]} 82. Bg1 {[%emt 0:00:58]} Nd5 $2 {[%emt 0:00:21]} ({Better is} 82... Ng2 $19 {[%cal Og2e3] aiming for ...Ne3!.} 83. Bh2 Nh4) 83. Bh2 $2 {[%emt 0:00:22][%mdl 8192]} (83. Kc4 $11 {and White stays safe.} Ne3+ (83... Ke6 84. Kd3 $17) 84. Kd3) 83... Ne3 {[%emt 0:00:04]} 84. Bg1 {[%emt 0:01:04]} Nd5 $2 {[%emt 0:00:15]} (84... Nf1 $19 85. Ke2 Ng3+ (85... h2 $2 86. Bxh2 Ne3 87. Kd3 $18) 86. Kf2 Ke6 (86... Nh1+ $2 87. Kf1 $17)) 85. Bh2 {[%emt 0:02:07] Weighted Error Value: White=0.19 (very precise) /Black=0.19 (very precise)   Loses game:     	White=1     	Black=3      Missed win:     	White=2     	Black=1      Mistake:       	White=5     	Black=4      Inaccurate:     	White=10    	Black=4      OK:         	White=23    	Black=19     Best:        	White=6     	Black=16     Strong:       	White=4     	Black=3} 1/2-1/2

[Event "2nd Bundesliga Nord 2024-25"]
[Site "Germany"]
[Date "2025.02.22"]
[Round "8.13"]
[White "Suvorov, Luca"]
[Black "Sivuk, Vitaly"]
[Result "0-1"]
[Annotator "TA"]
[ECO "E46"]
[WhiteElo "2388"]
[BlackElo "2510"]
[PlyCount "68"]
[EventDate "2024.11.29"]
[EventType "team-tourn"]
[EventCountry "GER"]
[SourceTitle "playchess.com"]
[Source "ChessBase"]
[SourceQuality "1"]
[WhiteTeam "SG Porz"]
[BlackTeam "Wolfhagen"]
[TimeControl "40/5400+30:1800+30"]

{[%evp 13,68,-2,0,-4,2,-7,-12,0,-9,-10,-11,-14,0,-2,0,-22,-13,-27,-23,-56,-58,-54,-48,-62,-50,-67,-15,-21,-10,-60,-70,-87,-72,-86,-74,-135,-127,-128,-108,-157,-139,-139,-131,-124,-126,-134,-110,-135,-121,-133,-79,-79,-85,-265,-264,-630,-646]} 1. d4 {[%emt 0:00:03]} Nf6 {[%emt 0:00:12]} 2. c4 {[%emt 0:00:35]} e6 {[%emt 0:00:09]} 3. Nc3 {[%emt 0:01:10]} Bb4 {[%emt 0:00:11]} 4. e3 {[%emt 0:01:10]} O-O {[%emt 0:00:14]} 5. Nge2 {[%emt 0:03:48]} Re8 {[%emt 0:01:03]} 6. a3 {[%emt 0:00:35]} Bf8 {[%emt 0:00:10]} 7. Ng3 {[%emt 0:00:37]} d5 {[%emt 0:00:26]} 8. Be2 {[%emt 0:00:55] E46: Nimzo-Indian: Rubinstein: 4 e3 0-0 5 Ne2 without early Bd3.} b6 {[%emt 0:00:57]} 9. cxd5 {[%emt 0:01:40]} exd5 {[%emt 0:00:11]} 10. O-O {[%emt 0:01:25] The position is equal.} a5 {[%emt 0:00:15]} 11. Bf3 {[%emt 0:12:04]} Bb7 {[%emt 0:02:50]} 12. Qc2 {[%emt 0:12:42]} Nc6 $146 {[%emt 0:05:03]} ({Predecessor:} 12... g6 13. e4 dxe4 14. Ncxe4 Nxe4 15. Nxe4 Qxd4 16. Be3 Qe5 17. Nf6+ Qxf6 18. Bxb7 Ra7 19. Qxc7 {½-½ Schmelz,T-Ellinger,P IECC T002016 2018 (3)}) 13. Rd1 {[%emt 0:08:29]} Ne7 {[%emt 0:03:11]} 14. Nge2 {[%emt 0:19:03]} Ng6 {[%emt 0:14:24]} 15. g3 {[%emt 0:01:35] Prevents Nh4.} Qd7 {[%emt 0:02:50]} 16. a4 {[%emt 0:08:16]} Rac8 {[%emt 0:05:15]} 17. Bg2 {[%emt 0:06:14]} h5 {[%emt 0:07:55]} 18. h3 {[%emt 0:03:31]} Bb4 {[%emt 0:02:42]} 19. Bd2 {[%emt 0:07:36]} c5 {[%emt 0:03:40]} (19... c6 $15) 20. Be1 {[%emt 0:01:04]} c4 {[%emt 0:08:05]} 21. Nf4 {[%emt 0:05:53]} (21. h4 $11) 21... Nxf4 $15 {[%emt 0:06:02]} 22. gxf4 {[%emt 0:00:06]} Bc6 {[%emt 0:01:23]} 23. b3 {[%emt 0:01:55]} Bb7 {[%emt 0:03:28]} 24. bxc4 {[%emt 0:00:29]} (24. Rdb1 $142) 24... Rxc4 $17 {[%emt 0:00:08] aiming for ...Ne4.} (24... dxc4 25. d5 $14) 25. Qb3 {[%emt 0:00:11]} Rec8 {[%emt 0:00:51]} 26. Nb5 {[%emt 0:00:45]} ({White should try} 26. Na2 Bxe1 27. Rxe1) 26... Ba6 {[%emt 0:01:31]} 27. Bf1 {[%emt 0:00:34]} Bxb5 {[%emt 0:03:31]} 28. axb5 {[%emt 0:00:02] [#]} Bxe1 $1 {[%emt 0:00:14]} 29. Rxe1 {[%emt 0:00:05][%cal Og1g2]} Rc3 {[%emt 0:01:34]} 30. Qd1 {[%emt 0:00:25]} Qf5 $36 {[%emt 0:00:14][%mdl 2048] Black has strong initiative.} 31. Ra2 {[%emt 0:01:54]} Ne4 {[%emt 0:01:21]} ({Better is} 31... g6 32. Qb1 Qxb1 33. Rxb1 Rc1) 32. Kh2 {[%emt 0:00:35]} g6 {[%emt 0:01:11] Black has more active pieces.} 33. f3 $2 {[%emt 0:00:53]} (33. Bd3 $17) 33... Nd6 $19 {[%emt 0:00:24]} 34. Rg2 $2 {[%emt 0:00:02] [#]} (34. Kg2) 34... Rxe3 $1 {[%emt 0:01:45] Weighted Error Value: White=0.37/Black=0.11 (very precise)   Loses game:     	White=1     	---        Mistake:       	White=4     	Black=2      Inaccurate:     	White=1     	---        OK:         	White=6     	Black=9      Best:        	White=1     	Black=1      Brilliant:      	---       	Black=1} 0-1